Cogmind - Beta 16 @@@ ROGUE MODE // 2025.10.22 @ 21:06:32 Player: ALICE_MARGADROID_V-02 Result: Destroyed by H-71 Marshal with Heavy Mass Driver Performance ------------- Evolutions (5) 2500 Regions Visited (11) 2200 Robots Destroyed (114) 570 Value Destroyed (4189) 4189 Prototype IDs (21) 420 Alien Tech Used (0) 0 Bonus (864) 864 TOTAL SCORE: 10743 Bonus ------- High Alert Combat Kills 57 Follower Combat Kills 671 Met Data Miner 300 Friendly Fire -164 Cogmind --------- Core Integrity 0/1000 Matter 286/300 Energy 80/100 System Corruption 6% Temperature Cool (1) Movement Flying (40) Location -5/Factory Parts ------- > --- POWER (1) -------- (None) > --- PROPULSION (6) --- Biomechanical Wings > --- UTILITY (7) ------ Advanced Terrain Scanner Advanced Targeting Computer Advanced Targeting Computer Advanced Targeting Computer Advanced Targeting Computer System Guard System Guard > --- WEAPON (3) ------- (None) > --- INVENTORY (5) ---- Reinforced Fission Core Experimental Biometal Medium Treads Heavy Phase Cannon Helical Railgun PL-3XN's Ring of Power Peak State ------------ > --- POWER ------------ Reinforced Deuterium Engine > --- PROPULSION ------- Improved Treads Improved Treads Wheel Compact Wheel Compact Wheel Antigrav System > --- UTILITY ---------- High-capacity Storage Unit Enhanced Optical Array Advanced Terrain Scan Processor 0b10 Decoder Chip [Skirmisher] Advanced Targeting Computer Improved Medium Armor Plating Advanced Shield Generator > --- WEAPON ----------- KE Penetrator KE Penetrator KE Penetrator > --- INVENTORY -------- Reinforced Fission Core Compact Wheel Advanced Heat Sink Coolant Injector Advanced Energy Well Advanced Terrain Scanner Advanced Terrain Scan Processor Seismic Detector Improved Medium Armor Plating Improved Focal Shield Advanced Shield Generator Advanced Shield Generator Tesla Rifle Variable Charge Gun Quantum Rifle Improved EM Pulse Cannon Heavy Phase Cannon Gauss Cannon Hypervelocity Gauss Cannon Proton Missile Launcher [Rating: 73] Favorites ----------- Power Improved Ion Engine Engine Improved Ion Engine Power Core Fission Core Propulsion Carbon-fiber Leg Treads Improved Treads Leg Carbon-fiber Leg Wheel Wheel Hover Unit Antigrav System Flight Unit VTOL Module Utility Advanced Targeting Computer Device Seismic Detector Storage High-capacity Storage Unit Processor Advanced Targeting Computer Protection Improved Medium Armor Plating Weapon Gauss Cannon Energy Gun Heavy EM Pulse Gun Energy Cannon EM Pulse Cannon Ballistic Gun KE Penetrator Ballistic Cannon Gauss Cannon Launcher Grenade Launcher Slashing Weapon Axe Build | -11 -10 -9 -9 -8 -7 -6 -6 -6 -6 -5 -5 ------- Run | Yrd Mat Mat Sto Mat Fac Fac Low Low Dat Pro Fac Slots Evolved 10 | . . 2 . 2 2 2 . . . . 2 Power . | . . . . . . . . . . . . Propulsion 4 | . . 1 . 1 1 . . . . . 1 Utility 5 | . . 1 . 1 1 2 . . . . . Weapon 1 | . . . . . . . . . . . 1 Parts Attached 137 | 8 6 11 7 6 10 5 9 8 . 25 42 Power 15 | 2 2 1 . 2 . 2 . 1 . 3 2 Engine 11 | 2 2 1 . 1 . 2 . 1 . . 2 Core 4 | . . . . 1 . . . . . 3 . Reactor . | . . . . . . . . . . . . Propulsion 42 | 2 . 3 2 1 3 1 2 2 . 8 18 Treads 4 | . . . . . . . . . . 1 3 Leg 18 | 2 . 1 2 1 2 1 2 1 . 6 . Wheel 9 | . . 1 . . . . . . . 1 7 Hover 2 | . . . . . . . . . . . 2 Flight 9 | . . 1 . . 1 . . 1 . . 6 Utility 52 | 2 1 5 . 2 5 2 3 5 . 11 16 Device 17 | 1 . 2 . 1 1 1 1 2 . 3 5 Storage 4 | 1 1 . . . 1 . . . . . 1 Processor 15 | . . 1 . 1 2 1 . . . 2 8 Hackware . | . . . . . . . . . . . . Protection 16 | . . 2 . . 1 . 2 3 . 6 2 Artifact . | . . . . . . . . . . . . Weapon 28 | 2 3 2 5 1 2 . 4 . . 3 6 Energy Gun 7 | 1 2 1 1 1 . . . . . 1 . Energy Cannon 5 | . . 1 3 . . . . . . . 1 Ballistic Gun 5 | 1 . . 1 . . . . . . . 3 Ballistic Cannon 8 | . . . . . 2 . 3 . . 2 1 Launcher 2 | . 1 . . . . . 1 . . . . Special Weapon . | . . . . . . . . . . . . Impact Weapon . | . . . . . . . . . . . . Slashing Weapon 1 | . . . . . . . . . . . 1 Piercing Weapon . | . . . . . . . . . . . . Special Melee Weapon . | . . . . . . . . . . . . Unidentified Prototypes 10 | . . 1 2 . 1 . . . . . 6 Corrupted Parts 9 | . . . . . . . . . . 9 . System Corruption 66 | . . . . . . . . . . 66 . Parts Lost 57 | . . . . . 3 . 5 3 . 21 25 Power 4 | . . . . . . . . 1 . 2 1 Propulsion 27 | . . . . . 1 . 2 . . 7 17 Utility 17 | . . . . . . . 3 2 . 9 3 Weapon 9 | . . . . . 2 . . . . 3 4 Highest Loss Streak 18 | . . . . . 2 . 4 3 . 18 9 To Critical Strikes . | . . . . . . . . . . . . Average Backups 16 | 3 10 14 15 14 15 19 18 18 20 18 18 Power 1 | . 1 1 1 1 1 2 1 2 2 1 1 Propulsion 1 | 2 4 3 3 2 1 . . . 1 . 1 Utility 8 | . 3 5 5 5 6 10 11 10 12 10 9 Weapon 5 | . 2 5 6 6 5 5 5 5 5 5 5 Tool/Special . | . . . . . . . . . . . . Unused Backups 42 | . 1 10 . 1 4 7 . 1 . 1 17 Power 2 | . . . . . . 2 . . . . . Propulsion 6 | . . 4 . . . . . . . . 2 Utility 16 | . . 4 . . 2 3 . 1 . 1 5 Weapon 18 | . 1 2 . 1 2 2 . . . . 10 Tool/Special . | . . . . . . . . . . . . Average Slot Usage (%) 95 | . 100 96 99 99 93 99 97 99 100 93 91 Engine 6 | . 14 11 11 8 7 2 6 5 6 2 3 Treads 1 | . . . . . . . . . . 1 5 Leg 26 | . 28 28 33 35 33 33 30 30 33 27 10 Wheel 2 | . . 2 . . . . . . . . 8 Device 10 | . 14 13 6 9 7 13 12 12 13 13 7 Storage 7 | . 14 11 11 9 7 6 6 6 6 6 4 Processor 15 | . . 4 11 9 15 19 20 20 20 17 19 Protection 5 | . . 3 4 9 7 6 6 6 6 5 4 Energy Gun 2 | . 16 13 5 1 . . . . . . 2 Energy Cannon 2 | . . 2 11 16 4 . . . . . . Ballistic Gun 2 | . 9 . . . . . . . . . 6 Ballistic Cannon 7 | . . . . . 7 13 12 13 13 12 6 Peak Build Rating 73 | 7 12 23 24 31 44 57 57 62 58 65 73 Average Rating 45 | 5 9 16 20 29 37 51 54 57 58 57 63 On Entrance 35 | . 7 11 18 24 30 44 56 57 58 58 60 Avg Prop Armor Cover (%) 11 | . . 13 . . . . . 1 . 6 13 Naked Turns 10 | . . . . . . . . . . . 10 Heaviest Build 85 | 14 34 44 47 48 70 74 75 73 73 84 85 Greatest Support 80 | 20 20 35 40 55 75 75 80 80 80 80 60 Greatest Overweight (x) 21 | . 1 3 1 . . . 1 1 . 21 8 Average Overweight (x) . | . . 1 . . . . . . . . 1 Largest Inventory Capacity 20 | 8 15 15 15 15 20 20 20 20 20 20 20 Average Capacity 17 | 7 13 15 15 15 16 20 20 20 20 20 19 Most Carried 20 | 7 15 15 15 15 20 20 20 20 20 20 20 Average Carried 16 | 4 10 14 14 14 15 19 18 18 20 18 18 Final Capacity 20 | 8 15 15 15 15 20 20 20 20 20 20 5 Final Carried 20 | 7 15 15 15 15 20 20 19 20 20 17 5 Class Distribution -------------------- 61% | Mutant 17% | Scavenger-Mutant 9% | Scavenger-Skirmisher 7% | Scavenger-Tank 3% | Scavenger-Gunner Dominant Class ---------------- Mutant | -10/Materials Mutant | -9/Materials Mutant | -9/Storage Mutant | -8/Materials Mutant | -7/Factory Mutant | -6/Factory Scavenger-Mutant | -6/Lower Caves Scavenger-Mutant | -6/Lower Caves Mutant | -6/Data Miner Mutant | -5/Proximity Caves Scavenger-Skirmisher | -5/Factory Resources | -11 -10 -9 -9 -8 -7 -6 -6 -6 -6 -5 -5 ----------- Run | Yrd Mat Mat Sto Mat Fac Fac Low Low Dat Pro Fac Matter Collected 4543 | 295 14 290 256 90 203 167 639 217 . 672 1700 Remotely . | . . . . . . . . . . . . Salvage Created 4264 | 93 22 235 531 256 321 151 631 215 . 696 1113 Parts 213 | 8 4 19 33 20 15 4 12 13 . 32 53 Haulers Intercepted 2 | . . 1 1 . . . . . . . . Recyclers Shooed 8 | . . . 3 . 1 1 . . . . 3 Parts Field Recycled . | . . . . . . . . . . . . Retrieved Matter . | . . . . . . . . . . . . Parts Self-Destructed 55 | . . . . . . . 10 16 . 29 . Prevented 17 | . . . . . . . 2 . . 15 . Parts Restored . | . . . . . . . . . . . . Kills | -11 -10 -9 -9 -8 -7 -6 -6 -6 -6 -5 -5 ------- Run | Yrd Mat Mat Sto Mat Fac Fac Low Low Dat Pro Fac Combat Hostiles Destroyed 85 | . 3 2 13 5 8 1 13 6 . 14 20 Guns 12 | . 1 . . . . . . . . . 11 Cannons 43 | . . 2 5 . 4 1 9 6 . 7 9 AOE 28 | . 2 . 8 5 4 . 4 . . 5 . Classes Destroyed 17 | 2 1 5 4 1 1 . . 1 . 2 . Worker 2 | . . 1 . . . . . . . . 1 Builder 3 | . . . . 1 . . . . . . 2 Tunneler 2 | 2 . . . . . . . . . . . Hauler 2 | . . 1 1 . . . . . . . . Recycler 6 | 1 . . 1 1 1 1 . . . . 1 Minesweeper 1 | . . . . . . . . . . 1 . Mechanic 2 | . . . 1 . . . . . . . 1 Operator 3 | . . 1 . 1 . . . . . . 1 Drone 1 | . . . . . . . . . . 1 . Watcher 8 | . . 3 . 2 1 . . . . . 2 Swarmer 24 | . 3 . . 4 . . 8 2 . 2 5 Grunt 26 | . . . 7 . 4 . 3 2 . 7 3 Brawler 4 | . . . 2 . . . . . . 2 . Duelist 2 | . . . 1 . . . 1 . . . . Sentry 17 | . . 2 3 1 1 1 1 . . 2 6 Programmer 9 | . . . . . 3 . . . . . 6 Decomposer 2 | . . . . . . . 2 . . . . Packrat 4 | . . . . . . . 3 1 . . . Thief 2 | . . . . . . . . 2 . . . Best Kill Streak 9 | 2 3 3 8 6 4 1 9 2 . 9 4 Combat Bots Only 9 | . 3 1 7 4 4 1 9 2 . 9 3 Max Kills in Single Turn 4 | 1 1 2 3 4 4 1 3 2 . 2 2 Gunslinging . | . . . . . . . . . . . . Exploded 4 | . 1 . 2 4 4 . 3 . . 2 . Melee . | . . . . . . . . . . . . Uniques/NPCs Destroyed . | . . . . . . . . . . . . Combat | -11 -10 -9 -9 -8 -7 -6 -6 -6 -6 -5 -5 -------- Run | Yrd Mat Mat Sto Mat Fac Fac Low Low Dat Pro Fac Hostile Shots Fired 775 | . 9 10 46 16 64 24 81 19 . 205 301 Missed 262 | . 4 5 20 5 26 15 32 7 . 58 90 Hits 513 | . 5 5 26 11 38 9 49 12 . 147 211 Melee 5 | . . . . . . . 1 3 . 1 . Projectile 508 | . 5 5 26 11 38 9 48 9 . 146 211 Critical Strikes 21 | . . . 1 . . . 4 1 . 5 10 Part Disruptions 2 | . . . . . . . . . . . 2 Damage Taken 9034 | . 46 79 375 77 553 32 893 194 . 2950 3835 Core 1698 | . 9 . 28 14 6 3 139 19 . 439 1041 Absorbed by Shields 496 | . . . . 7 61 18 46 11 . . 353 Redirected to Shielding 80 | . . . . . . . 53 . . . 27 Ignored by Resistances 256 | . . . . . . . . . . 243 13 Regen/Repaired (Parts) 52 | . . 52 . . . . . . . . . Core Remaining (%) 85 | 100 96 . 93 97 99 . . . . 29 . Volleys Fired 262 | 5 3 17 34 10 19 6 32 11 . 30 95 Largest 3 | 2 2 2 2 2 2 2 2 2 . 2 3 Hottest 185 | 70 90 108 126 126 126 80 80 80 . 84 185 Shots Fired 553 | 10 4 30 45 16 37 12 61 22 . 57 259 Gun 219 | 10 2 22 9 3 . . . . . . 173 Cannon 312 | . . 6 26 12 37 12 58 22 . 53 86 Launcher 22 | . 2 2 10 1 . . 3 . . 4 . Special . | . . . . . . . . . . . . Kinetic 408 | 5 . 2 . . 33 12 58 22 . 53 223 Thermal 46 | 5 . 2 . 3 . . . . . . 36 Explosive 15 | . 2 2 10 1 . . . . . . . Electromagnetic 84 | . 2 24 35 12 4 . 3 . . 4 . Robot Hit Streak 15 | 4 2 11 8 15 13 3 7 8 . 14 13 Robot Miss Streak 10 | 1 1 2 2 1 2 1 2 1 . 2 10 Penetration Max 1 | . . . . . . . . 1 . . 1 Secondary Targets 2 | . 1 . . . . . . . . . 1 Max Gunslinging Chain 1 | . 1 . . . . . . . . . 1 Shots Hit Robots 336 | 8 2 17 27 10 27 8 37 15 . 46 139 Core Hits 196 | 4 3 10 34 10 11 4 24 11 . 35 50 Critical Kills 3 | . . . . . . . . . . . 3 Critical Parts Destroyed 3 | . . . . . . . . . . . 3 Critical Strikes 36 | 2 . . . . 1 . 10 2 . 5 16 Burn 2 | 2 . . . . . . . . . . . Destroy 9 | . . . . . . . . . . . 9 Blast 25 | . . . . . 1 . 10 2 . 5 7 Melee Attacks 1 | . . . . . . . . . . . 1 Impact . | . . . . . . . . . . . . Slashing 1 | . . . . . . . . . . . 1 Piercing . | . . . . . . . . . . . . Sneak Attacks 1 | . . . . . . . . . . . 1 Combat Hostiles . | . . . . . . . . . . . . Follow-up Attacks . | . . . . . . . . . . . . Damage Inflicted 12135 | 95 168 357 1346 474 1405 228 1271 462 . 1842 4487 Guns 2893 | 95 14 194 89 64 . . . . . . 2437 Cannons 6280 | . . 106 343 205 768 228 1089 462 . 1125 1954 Explosions 2838 | . 140 57 909 205 629 . 182 . . 716 . Melee 88 | . . . . . . . . . . . 88 Ramming 36 | . 14 . 5 . 8 . . . . 1 8 Kinetic 7411 | 33 . 21 . . 701 228 1089 462 . 1125 3752 Thermal 1627 | 62 . 14 26 130 629 . . . . 127 639 Explosive 1219 | . 140 57 883 139 . . . . . . . Electromagnetic 1754 | . 14 265 432 205 67 . 182 . . 589 . Impact . | . . . . . . . . . . . . Slashing 88 | . . . . . . . . . . . 88 Piercing . | . . . . . . . . . . . . Highest Corruption 69 | . . . . . . . . . . 69 21 Average Corruption 12 | . . . . . . . . . . 28 5 Corruption Purged . | . . . . . . . . . . . . Corruption Blocked . | . . . . . . . . . . . . Effects 50 | . . . . . . . . . . 16 34 Message Errors 12 | . . . . . . . . . . 6 6 Matter Fused 13 | . . . . . . . . . . 2 11 Heat Flow Errors 6 | . . . . . . . . . . 2 4 Energy Discharges 1 | . . . . . . . . . . . 1 Data Loss (minor) 4 | . . . . . . . . . . 3 1 Data Loss (major) 3 | . . . . . . . . . . 1 2 Misfires 1 | . . . . . . . . . . 1 . Alerts 2 | . . . . . . . . . . 1 1 Misdirections 5 | . . . . . . . . . . . 5 Weapon Failures 3 | . . . . . . . . . . . 3 Overload Shots . | . . . . . . . . . . . . Overflow Damage 315 | . . . 3 3 184 1 57 6 . 4 57 Projectiles 102 | . . . 3 3 24 1 57 6 . 4 4 Explosions 160 | . . . . . 160 . . . . . . Melee 53 | . . . . . . . . . . . 53 Knockbacks 37 | . . . . . 4 1 10 6 . 2 14 Impact . | . . . . . . . . . . . . Kinetic 36 | . . . . . 4 1 10 5 . 2 14 Secondary 1 | . . . . . . . . 1 . . . Self-Inflicted Damage 343 | . . 2 . . 226 . . . . 115 . Shots 9 | . . 1 . . 3 . . . . 5 . Rammed . | . . . . . . . . . . . . Targets Rammed 8 | . 2 . 2 . 1 . . . . 1 2 Kicked 8 | . 2 . 2 . 1 . . . . 1 2 Crushed . | . . . . . . . . . . . . Highest Temperature 252 | 18 33 180 225 132 57 . 252 . . 199 243 Average Temperature 59 | 7 20 62 74 46 21 . 83 . . 50 59 Received Heat Transfer 2036 | . . 18 150 . 40 . 334 78 . 1131 285 Siege Activations . | . . . . . . . . . . . . Martial Activations . | . . . . . . . . . . . . Shielding Activations . | . . . . . . . . . . . . Robots Disrupted . | . . . . . . . . . . . . Combat Hostiles . | . . . . . . . . . . . . Robots Corrupted 2 | . . . . . . . . . . 2 . Combat Hostiles 2 | . . . . . . . . . . 2 . Parts Fried 8 | . . 1 2 1 . . 1 . . 3 . Impact Corruptions . | . . . . . . . . . . . . Robots Melted . | . . . . . . . . . . . . Combat Hostiles . | . . . . . . . . . . . . Parts Melted . | . . . . . . . . . . . . Heat Transferred 1845 | 333 . 37 50 161 400 . . . . 50 814 Parts Sabotaged . | . . . . . . . . . . . . Parts Stolen 2 | . . . . . . . 1 1 . . . Parts Stripped . | . . . . . . . . . . . . Power Chain Reactions 3 | . . . 1 . 1 . . . . 1 . Alert | -11 -10 -9 -9 -8 -7 -6 -6 -6 -6 -5 -5 ------- Run | Yrd Mat Mat Sto Mat Fac Fac Low Low Dat Pro Fac Maximum Alert Level 2 | . . . 2 1 1 . . . . . 1 Low Security (%) 53 | 100 100 100 22 . 85 100 . . . . 15 Level 1 40 | . . . 11 100 14 . . . . . 84 Level 2 5 | . . . 65 . . . . . . . . Level 3 . | . . . . . . . . . . . . Level 4 . | . . . . . . . . . . . . Level 5 . | . . . . . . . . . . . . High Security . | . . . . . . . . . . . . Max Security . | . . . . . . . . . . . . Peak Influence 546 | 10 86 40 546 377 263 50 . . . . 397 Initial 250 | . . 27 . 212 122 50 . . . . 250 Average 180 | 1 10 7 370 291 145 9 . . . . 284 Influence Increases 3867 | 15 91 117 748 280 428 80 270 160 . 469 1209 Destroy 0b10 Robot/C 2040 | . 60 40 420 100 160 20 260 120 . 340 520 Destroy 0b10 Robot/NC 160 | 15 . 30 15 25 10 5 . . . 20 40 Destroy Leader 420 | . 10 28 122 24 52 10 10 20 . 20 124 Allied During Kill 232 | . . . 57 . . . . 20 . 74 81 Successful Hack 71 | . 5 . . 5 19 42 . . . . . Disable Machine 300 | . . . 75 60 105 . . . . . 60 Destroy Structure 299 | . 16 19 59 66 52 3 . . . . 84 Advance Influence 150 | . . . . . . . . . . . 150 Partial Spotted 15 | . . . . . 15 . . . . . . Lose Combat Pursuer 180 | . . . . . 15 . . . . 15 150 Influence Decreases 3480 | 15 25 183 244 514 594 170 272 172 . 309 982 Entered New Map 602 | . . 39 . 292 148 54 6 3 . . 60 Time Decay 2344 | 15 25 144 204 222 416 116 216 140 . 254 592 Lost Part 414 | . . . . . 30 . 50 29 . 55 250 Lost Ally 120 | . . . 40 . . . . . . . 80 Squads Dispatched 21 | . . 1 5 . 3 1 . . . 1 10 Investigation . | . . . . . . . . . . . . Extermination 5 | . . . . . 2 . . . . . 3 Reinforcement 8 | . . 1 1 . 1 1 . . . . 4 Assault 3 | . . . 2 . . . . . . 1 . Garrison 5 | . . . 2 . . . . . . . 3 Intercept . | . . . . . . . . . . . . Searches Triggered . | . . . . . . . . . . . . Data Miner Redirects 1 | . . . . . . . . . . . 1 Construction Impeded 2 | . . . . . . . . . . . 2 Haulers Reinforced . | . . . . . . . . . . . . Active Scanning Responses . | . . . . . . . . . . . . Cargo Convoy Interrupts 1 | . . . . . . . . . . . 1 Stealth | -11 -10 -9 -9 -8 -7 -6 -6 -6 -6 -5 -5 --------- Run | Yrd Mat Mat Sto Mat Fac Fac Low Low Dat Pro Fac Distress Signals 1 | . . . . . . . . . . . 1 Communications Jammed . | . . . . . . . . . . . . Distress Signals . | . . . . . . . . . . . . Times Spotted 157 | . 3 5 24 7 15 1 14 9 . 22 57 Peak Tracking Total 12 | . 3 2 5 5 4 1 9 4 . 12 12 Tactical Retreats 7 | . . . . . 1 . . . . 1 5 Traps | -11 -10 -9 -9 -8 -7 -6 -6 -6 -6 -5 -5 ------- Run | Yrd Mat Mat Sto Mat Fac Fac Low Low Dat Pro Fac Traps Triggered 1 | . . . 1 . . . . . . . . Indirectly . | . . . . . . . . . . . . Trap Hack Attempts . | . . . . . . . . . . . . Triggered . | . . . . . . . . . . . . Disarmed . | . . . . . . . . . . . . Reprogrammed 2 | . . 2 . . . . . . . . . Reused . | . . . . . . . . . . . . Traps Extracted . | . . . . . . . . . . . . Installed . | . . . . . . . . . . . . Triggered . | . . . . . . . . . . . . Machines | -11 -10 -9 -9 -8 -7 -6 -6 -6 -6 -5 -5 ---------- Run | Yrd Mat Mat Sto Mat Fac Fac Low Low Dat Pro Fac Machines Disabled 22 | . . . 5 4 7 . . . . 2 4 Max in Single Turn 4 | . . . 2 3 4 . . . . 2 1 Garrison Access 1 | . . . . 1 . . . . . . . Machines Repaired . | . . . . . . . . . . . . Machines Dismantled . | . . . . . . . . . . . . Machines Sabotaged . | . . . . . . . . . . . . Overloaded Fab Kills . | . . . . . . . . . . . . Hacking | -11 -10 -9 -9 -8 -7 -6 -6 -6 -6 -5 -5 --------- Run | Yrd Mat Mat Sto Mat Fac Fac Low Low Dat Pro Fac Machines Accessed 26 | . 1 4 . 3 6 4 . 1 3 . 4 Terminals 11 | . 1 2 . 2 2 2 . . . . 2 Fabricators 1 | . . . . . 1 . . . . . . Repair Stations 2 | . . 1 . . . 1 . . . . . Recycling Units 2 | . . . . . 2 . . . . . . Scanalyzers 3 | . . 1 . . 1 1 . . . . . Garrison Access 3 | . . . . 1 . . . . . . 2 Total Hacks 79 | . 2 17 . 7 12 6 . 1 29 . 5 Successful 56 | . 1 12 . 4 6 3 . 1 29 . . Failed 22 | . 1 4 . 3 6 3 . . . . 5 Catastrophic 5 | . . . . 1 . 1 . . . . 3 Database Lockouts 1 | . . 1 . . . . . . . . . Manual . | . . . . . . . . . . . . Terminals 26 | . 2 9 . 6 3 4 . . . . 2 Fabricators 3 | . . . . . 3 . . . . . . Repair Stations 7 | . . 6 . . . 1 . . . . . Recycling Units 5 | . . . . . 5 . . . . . . Scanalyzers 4 | . . 2 . . 1 1 . . . . . Garrison Access 4 | . . . . 1 . . . . . . 3 Terminal Hacks 43 | . 1 5 . 3 2 2 . 1 29 . . Record 6 | . . . . . . . . . 6 . . Part Schematic 13 | . . . . . . . . . 13 . . Robot Schematic 7 | . . . . . . . . . 7 . . Prototype ID Bank 3 | . . . . . . . . . 3 . . Open Door 1 | . . . . . . . . 1 . . . Alert Level 2 | . . . . 1 1 . . . . . . Locate Traps 1 | . . 1 . . . . . . . . . Reprogram Traps 1 | . . 1 . . . . . . . . . Dispatch Records 2 | . . 1 . . . 1 . . . . . Patrol Status 2 | . . . . 1 . 1 . . . . . Recall Reinforcements 1 | . . 1 . . . . . . . . . Hauler Manifests 2 | . . . . 1 1 . . . . . . Zone Layout 2 | . 1 1 . . . . . . . . . Fabricator Hacks 1 | . . . . . 1 . . . . . . Build 1 | . . . . . 1 . . . . . . Repair Station Hacks 6 | . . 6 . . . . . . . . . Scan Component 3 | . . 3 . . . . . . . . . Repair 3 | . . 3 . . . . . . . . . Recycling Unit Hacks 3 | . . . . . 3 . . . . . . Report Inventory 2 | . . . . . 2 . . . . . . Retrieve Components 1 | . . . . . 1 . . . . . . Scanalyzer 2 | . . 1 . . . 1 . . . . . Retrieve Study 2 | . . 1 . . . 1 . . . . . Garrison Access Hacks 1 | . . . . 1 . . . . . . . Seal Access 1 | . . . . 1 . . . . . . . Unauthorized Hacks . | . . . . . . . . . . . . Terminals . | . . . . . . . . . . . . Fabricators . | . . . . . . . . . . . . Repair Stations . | . . . . . . . . . . . . Recycling Units . | . . . . . . . . . . . . Scanalyzers . | . . . . . . . . . . . . Garrison Access . | . . . . . . . . . . . . Data Cores Recovered 1 | . . . . 1 . . . . . . . Used . | . . . . . . . . . . . . Hacking Detections 17 | . 1 3 . 2 4 3 . . . . 4 Full Trace Events . | . . . . . . . . . . . . Feedback Events . | . . . . . . . . . . . . Feedback Blocked . | . . . . . . . . . . . . Robot Schematics Acquired 7 | . . . . . . . . . 7 . . Robots Built . | . . . . . . . . . . . . Authchips . | . . . . . . . . . . . . Time . | . . . . . . . . . . . . Total Robot Build Rating . | . . . . . . . . . . . . Part Schematics Acquired 13 | . . . . . . . . . 13 . . Parts Built 2 | . . . . . 2 . . . . . . Authchips . | . . . . . . . . . . . . Time 42 | . . . . . 42 . . . . . . Total Part Build Rating 8 | . . . . . 8 . . . . . . Part Studies Acquired 1 | . . . . . . 1 . . . . . Parts Repaired 3 | . . 3 . . . . . . . . . Time 96 | . . 96 . . . . . . . . . Parts Recycled . | . . . . . . . . . . . . Recycled Matter . | . . . . . . . . . . . . Retrieved Matter . | . . . . . . . . . . . . Retrieved Components 3 | . . . . . 3 . . . . . . Parts Scanalyzed . | . . . . . . . . . . . . Part Schematics Acquired . | . . . . . . . . . . . . Parts Damaged . | . . . . . . . . . . . . Bothacking | -11 -10 -9 -9 -8 -7 -6 -6 -6 -6 -5 -5 ------------ Run | Yrd Mat Mat Sto Mat Fac Fac Low Low Dat Pro Fac Used RIF Installer . | . . . . . . . . . . . . Robots Hacked . | . . . . . . . . . . . . Non-combat . | . . . . . . . . . . . . Combat . | . . . . . . . . . . . . Robot Hacks Applied . | . . . . . . . . . . . . Relay Couplers Released . | . . . . . . . . . . . . Fabnet Peak Effective % . | . . . . . . . . . . . . Robots Rewired 4 | . . . . . . . 2 . . 2 . Allies Hacked . | . . . . . . . . . . . . Hacks Repelled . | . . . . . . . . . . . . Allies | -11 -10 -9 -9 -8 -7 -6 -6 -6 -6 -5 -5 -------- Run | Yrd Mat Mat Sto Mat Fac Fac Low Low Dat Pro Fac Total Allies 7 | . . . 2 . . . 2 . . 3 . Largest Group 4 | . . . 2 . . . 2 2 2 4 4 Highest-Rated Group 199 | . . . 62 . . . 62 62 62 199 199 Highest-Rated Ally 96 | . . . 31 . . . 32 32 32 96 96 Total Orders 2 | . . . . . . . . . . . 2 STAY 1 | . . . . . . . . . . . 1 FOLLOW 1 | . . . . . . . . . . . 1 Ally Attacks 94 | . . . 33 . . . . 8 . 25 28 Total Damage 2297 | . . . 509 . . . . 208 . 690 890 Kills 22 | . . . 8 . . . . 2 . 6 6 Allies Corrupted . | . . . . . . . . . . . . Allies Melted . | . . . . . . . . . . . . Intel | -11 -10 -9 -9 -8 -7 -6 -6 -6 -6 -5 -5 ------- Run | Yrd Mat Mat Sto Mat Fac Fac Low Low Dat Pro Fac Active Infowar (turns) 6346 | 18 353 524 263 430 595 499 632 699 90 469 1774 Optics 1026 | . . . . . . . . . . . 1026 Sensors 344 | . . 344 . . . . . . . . . Terrain 736 | . . . . . . . . . . . 736 Structural 69 | . . 69 . . . . . . . . . Seismic 5704 | 18 353 524 263 430 595 499 632 699 90 468 1133 Decoding 1898 | . . . . . . . . . . 141 1757 Robot Analysis Total . | . . . . . . . . . . . . Derelict Logs Recovered 3 | . . . . . . . 1 1 . 1 . Drone Launches . | . . . . . . . . . . . . Drone Recoveries . | . . . . . . . . . . . . Decoded 0b10 Intel 30 | . . . . . . . . . . . 30 Garrisons 3 | . . . . . . . . . . . 3 Patrols 11 | . . . . . . . . . . . 11 Guards 16 | . . . . . . . . . . . 16 Exploration | -11 -10 -9 -9 -8 -7 -6 -6 -6 -6 -5 -5 ------------- Run | Yrd Mat Mat Sto Mat Fac Fac Low Low Dat Pro Fac Turns Passed 8134 | 146 353 744 457 478 1002 510 711 725 90 1042 1876 Spaces Moved 5309 | 102 185 380 221 354 748 413 474 541 79 650 1162 Core 32 | 13 . . . . . . . . . 2 17 Treads 6 | . . . . . . . . . . 1 5 Legs 4327 | 89 185 247 221 354 748 413 474 541 79 618 358 Wheels 753 | . . 133 . . . . . . . 29 591 Hover . | . . . . . . . . . . . . Flight 191 | . . . . . . . . . . . 191 Fastest Speed 27 | 50 120 120 120 120 120 105 105 108 108 105 27 Average Speed 125 | 111 173 139 148 120 120 110 118 123 108 134 119 Slowest Speed 1100 | 120 190 190 190 120 120 120 175 178 108 1100 455 Overloaded Moves 58 | . . . . . . . . . . . 58 Propulsion Burnouts . | . . . . . . . . . . . . Robots Hopped 8 | . . . . . . . . . . . 8 Potential Cave-ins . | . . . . . . . . . . . . Cave-ins Triggered . | . . . . . . . . . . . . Exploration Rate (%) 40 | 6 31 26 43 34 20 8 73 73 68 73 27 Regions Visited 11 Branch Regions 5 Pre-discovered Areas 1 | . . . . . . . . . 1 . . Known Exits Taken . | . . . . . . . . . . . . Unknown Exits Taken 11 | 1 1 1 1 1 1 1 1 1 1 1 . Scrap Searched 11 | . . . . . . . 3 3 . 5 . Spaces Dug 26 | . 9 16 . . . . . . . . 1 Terrain Destroyed 326 | . 24 16 78 67 66 4 14 6 . 17 34 Melee . | . . . . . . . . . . . . Projectile 77 | . . . . . 6 4 14 6 . 14 33 AOE 248 | . 24 16 78 67 60 . . . . 3 . Terrain Rammed . | . . . . . . . . . . . . Walls Destroyed . | . . . . . . . . . . . . Machines Disabled . | . . . . . . . . . . . . Actions | -11 -10 -9 -9 -8 -7 -6 -6 -6 -6 -5 -5 --------- Run | Yrd Mat Mat Sto Mat Fac Fac Low Low Dat Pro Fac Total 6267 | 121 214 564 304 389 817 460 558 572 83 757 1428 Wait 237 | . . 104 29 2 9 1 26 . 5 7 54 Move 5282 | 101 184 379 220 353 747 412 473 540 78 649 1146 Hop 8 | . . . . . . . . . . . 8 Pick Up 119 | 6 12 16 1 5 15 17 4 5 . 11 27 Fast Attach 71 | 8 . 11 5 1 5 . 1 2 . 12 26 Attach 47 | . 2 1 1 2 3 2 5 3 . 15 13 Detach 11 | 1 . . . 1 . . . 1 . 4 4 Swap 98 | . 4 13 5 10 7 6 8 6 . 12 27 Drop 105 | . 7 23 7 5 11 16 1 4 . 6 25 Fire 262 | 5 3 17 34 10 19 6 32 11 . 30 95 Melee 1 | . . . . . . . . . . . 1 Ram . | . . . . . . . . . . . . Kick 8 | . 2 . 2 . 1 . . . . 1 2 Crush . | . . . . . . . . . . . . Escape Stasis . | . . . . . . . . . . . . Rewire 18 | . . . . . . . 8 . . 10 . Trap . | . . . . . . . . . . . . Miscellaneous . | . . . . . . . . . . . . Route ------- -11/Scrapyard -10/Materials -9/Materials (discovered 3 exits: *Mat / [*Min] / [*Sto]) -9/Storage -8/Materials -7/Factory -6/Factory -6/Lower Caves -6/Lower Caves (discovered 2 exits: *Fac / *Dat) -6/Data Miner -5/Proximity Caves -5/Factory (discovered 1 exit: [*Fac]) History --------- Turn | Location | Event 4 | -11/Scrapyard | Discovered new exit (range 15) 147 | -11/Scrapyard | Entered Materials 148 | -10/Materials | Met a group of wandering Federalists 318 | -10/Materials | Build established: Mutant 456 | -10/Materials | Discovered new exit (range 15) 500 | -10/Materials | Entered another Materials area 500 | -9/Materials | Evolved 2 slots: Propulsion x1, Utility x1 688 | -9/Materials | Discovered new exit (range 13) 943 | -9/Materials | Discovered new exit (range 16) 969 | -9/Materials | Central database locked down 1086 | -9/Materials | Repaired Seismic Detector 1119 | -9/Materials | Repaired Hvy. EM Pulse Gun 1159 | -9/Materials | Repaired EM Pulse Cannon 1224 | -9/Materials | Discovered new exit (range 9) 1244 | -9/Materials | Entered Storage 1254 | -9/Storage | Met a pair of Derelict thieves 1391 | -9/Storage | Destroyed 7 combat bots 1559 | -9/Storage | Garrison activated, responded to threat 1637 | -9/Storage | Discovered new exit (range 7) 1701 | -9/Storage | Entered Materials 1701 | -8/Materials | Evolved 2 slots: Propulsion x1, Utility x1 2166 | -8/Materials | Discovered new exit (range 11) 2179 | -8/Materials | Entered Factory 2179 | -7/Factory | Evolved 2 slots: Propulsion x1, Utility x1 2789 | -7/Factory | Fabricated Gauss Cannon? 3067 | -7/Factory | Discovered new exit (range 15) 3181 | -7/Factory | Entered another Factory area 3181 | -6/Factory | Evolved 2 slots: Utility x2 3685 | -6/Factory | Discovered new exit (range 6) 3691 | -6/Factory | Entered Lower Caves 3773 | -6/Lower Caves | Build established: Scavenger-Mutant 4089 | -6/Lower Caves | Attracted the attention of an 0b10 outpost 4154 | -6/Lower Caves | Lost 4 parts (2n2u) 4155 | -6/Lower Caves | Destroyed 9 combat bots 4182 | -6/Lower Caves | Learned Factory emergency access door positions 4344 | -6/Lower Caves | Encountered a Warlord checkpoint 4371 | -6/Lower Caves | Discovered new exit (range 6) 4385 | -6/Lower Caves | Build established: Mutant 4402 | -6/Lower Caves | Entered another Lower Caves area 4402 | -6/Lower Caves | Accompanied by 2 allies 4447 | -6/Lower Caves | Lost 3 parts (1p2u) 4458 | -6/Lower Caves | Discovered new exit (range 7) 4923 | -6/Lower Caves | Learned Factory trap positions 5100 | -6/Lower Caves | Discovered new exit (range 5) 5127 | -6/Lower Caves | Entered Data Miner 5127 | -6/Data Miner | Accompanied by 2 allies 5127 | -6/Data Miner | Discovered new exit (range 6) 5148 | -6/Data Miner | Met Data Miner 5167 | -6/Data Miner | Learned location of Section 7 (-2) 5167 | -6/Data Miner | Acquired the access code to Warlord's prototype stash 5184 | -6/Data Miner | Received God Mode back door access code from Data Miner 5217 | -6/Data Miner | Entered Proximity Caves 5217 | -5/Proximity Caves | Accompanied by 2 allies 5220 | -5/Proximity Caves | Spotter reported a threat 5391 | -5/Proximity Caves | Attracted the attention of an 0b10 checkpoint 5556 | -5/Proximity Caves | Spotted B-75 Beast 5581 | -5/Proximity Caves | Allies destroyed B-75 Beast 5985 | -5/Proximity Caves | Attracted the attention of an 0b10 outpost 6016 | -5/Proximity Caves | Discovered new exit (range 10) 6040 | -5/Proximity Caves | Core integrity fell below 50% 6051 | -5/Proximity Caves | Escorted by Enhanced Grunt 6053 | -5/Proximity Caves | System corruption reached 10% 6083 | -5/Proximity Caves | Destroyed 9 combat bots 6087 | -5/Proximity Caves | Lost 18 parts (1p5n9u3w) 6105 | -5/Proximity Caves | System corruption reached 30% 6259 | -5/Proximity Caves | Entered Factory 6259 | -5/Factory | Accompanied by 4 allies 6259 | -5/Factory | Evolved 2 slots: Propulsion x1, Weapon x1 6260 | -5/Factory | Loaded intel: 83 trap records 6857 | -5/Factory | Build established: Scavenger-Tank 7010 | -5/Factory | Garrison activated, responded to threat 7072 | -5/Factory | Discovered new exit (range 16) 7083 | -5/Factory | Lost 9 parts (7n1u1w) 7191 | -5/Factory | Cargo convoy interrupted 7304 | -5/Factory | Build established: Scavenger-Gunner 7871 | -5/Factory | Build established: Scavenger-Skirmisher 7998 | -5/Factory | System corruption reached 10% 8032 | -5/Factory | Released all parts (12) 8033 | -5/Factory | Core integrity fell below 50% 8035 | -5/Factory | Incoming assault squad redirected 8040 | -5/Factory | Found PL-3XN's Ring of Power 8043 | -5/Factory | Core integrity fell below 20% 8056 | -5/Factory | Lost 8 parts (5n1u2w) 8135 | -5/Factory | Spotted B-75 Beast 8135 | -5/Factory | Destroyed by H-71 Marshal with Heavy Mass Driver Last Messages --------------- 08061_ Critical hit (Burn: +37). 08061_ K-01 Serf cleans the Fusion Modulator. 08066_ U-05 Engineer works on Assembly Bed. 08068_ K-01 Serf collects debris. 08069_ Acquired System Guard. 08071_ U-05 Engineer works on Assembly Bed. 08071_ K-01 Serf cleans the Terminal. 08071_ Acquired System Guard. 08072_ K-01 Serf cleans the Assembly Bed. 08072_ K-01 Serf collects debris. 08073_ Assembly Bed disabled. 08076_ K-01 Serf collects debris. 08076_ U-05 Engineer works on Assembly Bed. 08105_ Acquired Adv. Targeting Computer. 08113_ Acquired 153 matter. 08117_ System corrupted: Heat flow error (+167). 08135_ Acquired Prototype Flight Unit. 08135_ Identified Biomechanical Wings. 08135_ Penetrated by Slug. 08135_ Cld. Q-thruster destroyed. Map ----- +----------------------------------------------------+ | ?????????????????????????????????????????????????? | | ?????????????????????????????????????????????????? | | ?????????????????????????????????????????????????? | | ?????????????????????????????????????????????????? | | ?????????????????????????????????????????????????? | | ?????+???????????????????????????????????????????? | | ???????+?????????????????????????????????????????? | | ?????????????????????????????????????????????????? | | ?????????????????????????H???????????????????????? | | ?????????+???????????????????????????????????????? | | ????????????????????????? ????????????????????? | | ????????????????????????? ???????????????????? | | ????????????????????????? #??????????????????? | | ????????????????????????# #??????????????????? | | ????????????????????????# +??????????????????? | | ????????????????????????# #??????????????????? | | ????????????????????????# #?????????+????????? | | ????????????????????????# #??????????????????? | | ????????????????????????# #???????????+??????? | | ????????????#########+### #??????????????????? | | ???????????? [!^! ^ #??????????????????? | | ??????????? [!! #??????????????????? | | ??????????? !!! i#??????????????????? | | ??????????B ^^ !==%" #??????????????????? | | ??????????B !== T #??????????????????? | | ??????????# !=@ " #??????????????????? | | ??????????# g ###+#######+###????? | | ??????????# g #????? | | ??????????? ######### #????? | | ??????????? ????????????# #????? | | ????????????????????????# ##???? | | ????????????????????????# T#???? | | ????????????????????????############### #???? | | ??????????????????????????????????????# ###### | | ??????????????????????????????????????# | | ??????????????????????????????????????# | | ??????????????????????????????????????# | | ??????????????????????????????????????# | | ??????????????????????????????????????# | | ??????????????????????????????????????##########+# | | ?????????????????????????????????????????????? | | ???????????????????????????????????????????? """" | | ??????????????????????????????????????????# """" | | ??????????????????????????????????????????# """" | | ??????????????????????????????????????????# """" | | ??????????????????????????????????????????# | | ??????????????????????????????????????????# ??""" | | ??????????????????????????????????????????# ?????? | | ?????????????????????????????????????????????????? | | ?????????????????????????????????????????????????? | +----------------------------------------------------+ Best States ------------- Heat Dissipation 78 Coolant Potential 65 Energy Generation 19 Energy Capacity 310 Matter Stores 300 Matter Capacity 300 Sight Range 22 Robot Scan Range 14 Terrain Scan Range 20 Terrain Scan Density 210 Corruption Containment 16 Armor Coverage 450 Resistance: TH 20 Utility Shielding 66 Weapon Shielding 33 Evasion (%) 65 Targeting Accuracy 32 Core Analysis 6 Recoil Reduction 2 Item Schematics ----------------- Combat Drone Bay | -6/Data Miner | Free Lgt. Regenerative Plating | -6/Data Miner | Free Enh. Armored Leg | -6/Data Miner | Free Imp. Matter Compressor | -6/Data Miner | Free Imp. KE Penetrator | -6/Data Miner | Free Field Propulsion Array | -6/Data Miner | Free Adv. Reaction Control System | -6/Data Miner | Free Hvy. Gauss Cannon | -6/Data Miner | Free Adv. Transmission Jammer | -6/Data Miner | Free Imp. Component Analysis Suite | -6/Data Miner | Free Imp. Force Field | -6/Data Miner | Free Mic. Antimatter Reactor | -6/Data Miner | Free Adv. Component Analysis Suite | -6/Data Miner | Free Robot Schematics ------------------ Y-54 Guardian | -6/Data Miner | Free E-15 Imp | -6/Data Miner | Free L-41 Fighter | -6/Data Miner | Free A-27 Freighter | -6/Data Miner | Free M-30 Cleanser | -6/Data Miner | Free G-50 Soldier | -6/Data Miner | Free A-15 Conveyor | -6/Data Miner | Free Fabricated ------------ Gauss Cannon | x2 | -7/Factory | Preloaded Repaired ---------- Seismic Detector | 15% | -9/Materials Hvy. EM Pulse Gun | 62% | -9/Materials EM Pulse Cannon | 78% | -9/Materials Studied --------- Carbon-fiber Leg | -6/Factory | Hacked Alien Tech Used ----------------- None Achievements -------------- Bumper Bots Ghost 'Em Challenges ------------ None Game ------ Seed DispersionBarrageStorm Manual? 0 Play Time 01:17:30 Cumulative 251.1 hours Start 2025.10.22 @ 19:38:02 End 2025.10.22 @ 21:06:32 Sessions 1 Manual Loads 0 Difficulty Rogue Special Mode None Game No. 272 Rogue 272 Adventurer 0 Explorer 0 Win Type - Total 3 Types 3/0/0/0/0/0/0/0/0/0 Lore% 74 Gallery% 70 Achievement% 41 Wizard Run 0 Options --------- Layout 0 ASCII 0 Keyboard 1 Movement Vi Keybinds 0 Fullscreen 2 Font 18/Smallcaps Map View 76x50 Zoom Use 0% Tactical HUD 1 Map Filters NONE Filters NONE Steam X RUN: 583b5049-3f10-4746-94cb-9dced4966189